[Event "44th Chess Olympiad Open 2022"]
[Site "Chennai"]
[Date "2022.08.09"]
[Round "11.13"]
[White "Pelletier, Yannick"]
[Black "Rodshtein, Maxim"]
[Result "0-1"]
[ECO "D45"]
[WhiteElo "2551"]
[BlackElo "2596"]
[Annotator "TA"]
[PlyCount "108"]
[EventDate "2022.07.29"]
[EventType "team-tourn"]
[EventCountry "IND"]
[SourceTitle "playchess.com"]
[Source "ChessBase"]
[SourceQuality "1"]
[WhiteTeam "Switzerland"]
[BlackTeam "Israel"]
[WhiteTeamCountry "SUI"]
[BlackTeamCountry "ISR"]
[TimeControl "40/5400+30:1800+30"]

{[%evp 21,108,0,0,10,0,0,0,0,11,5,31,36,53,27,50,36,71,49,121,134,122,29,130,0,0,0,0,0,-7,-27,-20,-66,-6,-78,-58,-112,-114,-111,-104,-200,-5,-234,-49,-43,0,0,0,-118,-119,-223,-216,-215,-211,-197,-150,-161,-174,-141,-149,-424,-416,-360,-345,-482,-470,-12825,-5302,-12837,-12837,-12838,-12839,-12840,-12840,-12841,-12840,-12841,-12842,-12842,-12843,-12843,-12843,-12844,-12844,-12845,-12845,-12845,-12846,-12845,-12846]} 1. d4 {[%emt 0:00:05]} Nf6 {[%emt 0:00:08]} 2. c4 {[%emt 0:00:11]} e6 {[%emt 0:00:13]} 3. Nf3 {[%emt 0:00:16]} d5 {[%emt 0:00:25]} 4. Nc3 {[%emt 0:00:46]} c6 {[%emt 0:00:40]} 5. e3 {[%emt 0:00:46]} Nbd7 {[%emt 0:00:14]} 6. Qc2 {[%emt 0:00:44]} Bd6 {[%emt 0:00:16]} 7. b3 {[%emt 0:01:01]} O-O {[%emt 0:01:12]} 8. Be2 {[%emt 0:00:45]} b6 {[%emt 0:00:40]} 9. O-O {[%emt 0:00:23]} Bb7 {[%emt 0:00:06]} 10. Bb2 {[%emt 0:00:04]} Qe7 {[%emt 0:01:24]} 11. Rfe1 {[%emt 0:01:29]} Rfe8 {[%emt 0:05:02]} 12. e4 {[%emt 0:04:52] D45: Semi-Slav: 5 e3.} Nxe4 {[%emt 0:08:10]} 13. Nxe4 {[%emt 0:00:06]} dxe4 {[%emt 0:00:05]} 14. Qxe4 {[%emt 0:00:10] The position is equal.} Nf6 {[%emt 0:24:51]} 15. Qc2 {[%emt 0:06:09]} c5 {[%emt 0:03:23]} 16. d5 {[%emt 0:03:23]} exd5 {[%emt 0:04:42] White must now prevent ...d4.} 17. Bd3 {[%emt 0:02:04]} Ne4 {[%emt 0:01:23] Threatens to win with ...d4.} 18. cxd5 {[%emt 0:00:22]} f5 {[%emt 0:00:41]} 19. Rad1 {[%emt 0:16:15]} a6 {[%emt 0:05:10] [#]} (19... Bxd5 20. Bb5 Bb7 21. Qc4+ (21. Bxe8 Rxe8 22. Qc4+ Kf8 $16) 21... Kf8 22. Bxe8 Rxe8 23. g3 $16) ({Better is} 19... Rac8 $14) 20. g3 $146 {[%emt 0:20:28]} ({Predecessor:} 20. a4 h6 21. h3 Qf7 22. Bc4 Kh8 23. Nd2 Qg6 24. Nxe4 fxe4 25. Qd2 Re7 26. Re2 {0-1 (35) Lee,A (2348)-Lu,M (2298) Charlotte 2022}) 20... Qf7 {[%emt 0:26:23]} 21. Bxe4 {[%emt 0:10:25]} (21. Nh4 $1 $16) 21... Rxe4 {[%emt 0:00:08]} (21... fxe4 $11 22. Ng5 Qh5) 22. Rxe4 {[%emt 0:01:14]} (22. Ng5 $1 $16 {[%cal Rg5f7]} Rxe1+ 23. Rxe1) 22... fxe4 $11 {[%emt 0:00:05]} 23. Ng5 {[%emt 0:15:07]} Qh5 {[%emt 0:00:37]} (23... Qf5 24. Nxe4 (24. Qxe4 Qxe4 25. Nxe4 Rd8 $11) 24... Rf8 25. Qd3 $16 (25. Qc3 Rf7 $14)) 24. Nxe4 {[%emt 0:00:49]} Bf8 {[%emt 0:00:38]} 25. h4 {[%emt 0:04:53]} (25. f4 {keeps more tension.} Rd8 26. Ng5 Be7 27. h4) 25... h6 {[%emt 0:02:23][%mdl 1024] Against Ng5. Black has compensation.} 26. a4 {[%emt 0:03:21]} (26. Nc3 $11) 26... Re8 {[%emt 0:03:30]} (26... b5 $15) 27. Nc3 {[%emt 0:00:54]} (27. Rd2 $11 {keeps the balance.}) 27... Qf3 {[%emt 0:03:01]} 28. Kh2 {[%emt 0:01:23]} (28. Qg6 $2 Bxd5 $1 29. Nxd5 Qxd1+ 30. Kh2 Qxd5 $1 $19) (28. Qb1 $15) 28... Bd6 $17 {[%emt 0:04:31][%cal Ob7d5] Strongly threatening ...Bxd5!} 29. Rd3 {[%emt 0:00:35]} Qg4 $40 {[%emt 0:00:08][%mdl 128] Hoping for ...Re1. Black goes for the king. 0x0.0024d7799c78dp-1022s more active pieces.} 30. Kg2 {[%emt 0:00:23]} (30. Qd2 $17 {was called for.}) 30... b5 $2 {[%emt 0:02:28]} (30... Bc8 $19 31. Qc1 Bf4 $1) 31. axb5 $2 {[%emt 0:00:20]} (31. Qd1 $11 {and White stays safe.} Qd7 32. Qd2) 31... axb5 $2 {[%emt 0:00:06]} (31... Bc8 $19 {( -> ...Qh3+)} 32. Qc1 (32. Qd1 $2 Qh3+ 33. Kg1 Bf5 $19) 32... Bf4) 32. Qd1 $15 {[%emt 0:02:38]} Qxd1 {[%emt 0:01:13]} 33. Nxd1 {[%emt 0:02:40]} Re2 {[%emt 0:00:50]} 34. Bc3 {[%emt 0:01:53] [#]} (34. Kf1 $11 Rc2 35. Ke1) 34... b4 $1 $17 {[%emt 0:00:43]} 35. Bb2 {[%emt 0:00:23] [#]} (35. Ba1 $17) 35... Ba6 $1 $19 {[%emt 0:00:25]} 36. Re3 {[%emt 0:00:26]} Rd2 {[%emt 0:00:06][%csl LRd1,LRd5]} 37. Re6 {[%emt 0:00:13]} Rxd5 {[%emt 0:01:05]} 38. Ne3 {[%emt 0:00:22]} Kf7 {[%emt 0:01:25]} 39. Nxd5 {[%emt 0:01:04]} Kxe6 {[%emt 0:00:06][%mdl 4096] Endgame KBB-KBN} 40. Ne3 $2 {[%emt 0:00:29][%mdl 8192]} (40. Nf4+ $17 Bxf4 41. gxf4) 40... Be5 {[%emt 0:00:23]} 41. Bc1 {[%emt 0:04:53]} ({Reject} 41. Bxe5 Kxe5 42. f4+ Kd4 $19) 41... Bb7+ {[%emt 0:05:00]} 42. f3 {[%emt 0:09:25]} Bd5 {[%emt 0:00:39] Black is clearly winning.} 43. Nxd5 {[%emt 0:07:05]} (43. Kf2 $142 Bxb3 44. f4) 43... Kxd5 {[%emt 0:00:06] KB-KB} 44. g4 {[%emt 0:00:03]} c4 {[%emt 0:03:26]} 45. bxc4+ {[%emt 0:00:15]} Kxc4 {[%emt 0:00:05]} 46. f4 {[%emt 0:00:41]} Bc3 {[%emt 0:01:12]} 47. f5 {[%emt 0:02:59]} Kd3 {[%emt 0:00:39]} 48. g5 {[%emt 0:00:29]} hxg5 {[%emt 0:18:44]} 49. hxg5 {[%emt 0:00:04]} b3 {[%emt 0:02:13]} 50. f6 {[%emt 0:00:23]} gxf6 {[%emt 0:02:27]} 51. g6 {[%emt 0:00:12]} f5 {[%emt 0:00:05]} 52. Kf3 {[%emt 0:01:01]} Be5 {[%emt 0:00:11]} 53. Ba3 {[%emt 0:00:52]} Kc4 {[%emt 0:00:25]} 54. Ke3 {[%emt 0:07:51]} Kd5 {[%emt 0:00:06] Weighted Error Value: White=0.64/Black=0.23 (precise)} 0-1

[Event "44th Chess Olympiad Open 2022"]
[Site "Chennai"]
[Date "2022.08.09"]
[Round "11.14"]
[White "Amin, Bassem"]
[Black "Jobava, Baadur"]
[Result "1/2-1/2"]
[ECO "A07"]
[WhiteElo "2680"]
[BlackElo "2585"]
[Annotator "TA"]
[PlyCount "85"]
[EventDate "2022.07.29"]
[EventType "team-tourn"]
[EventCountry "IND"]
[SourceTitle "playchess.com"]
[Source "ChessBase"]
[SourceQuality "1"]
[WhiteTeam "Egypt"]
[BlackTeam "Georgia"]
[WhiteTeamCountry "EGY"]
[BlackTeamCountry "GEO"]
[TimeControl "40/5400+30:1800+30"]

{[%evp 9,85,0,17,-8,-2,-1,-3,0,13,0,12,0,3,-20,22,13,28,32,28,30,34,22,31,30,41,33,39,41,33,10,15,12,14,21,27,11,41,6,9,8,13,9,9,9,10,0,0,0,0,0,0,0,0,0,0,0,0,0,0,0,0,0,0,0,0,0,0,0,0,0,0,0,0,0,0,0,0,0]} 1. Nf3 {[%emt 0:01:04]} d5 {[%emt 0:00:11]} 2. g3 {[%emt 0:00:08]} g6 {[%emt 0:00:33]} 3. Bg2 {[%emt 0:00:27]} Bg7 {[%emt 0:00:15]} 4. O-O {[%emt 0:00:12]} e5 {[%emt 0:00:18]} 5. d3 {[%emt 0:00:01]} Nc6 {[%emt 0:01:56]} 6. Nc3 {[%emt 0:00:14] A07: Réti Opening: New York and Capablanca Systems.} Nge7 {[%emt 0:00:28]} 7. e4 {[%emt 0:00:22]} dxe4 {[%emt 0:01:06]} 8. dxe4 {[%emt 0:00:30]} Be6 {[%emt 0:01:43]} 9. b3 {[%emt 0:18:02] [#]} Nd4 $146 {[%emt 0:11:41]} ({Predecessor:} 9... h6 10. Ba3 O-O 11. Nd5 Re8 12. Nxe7+ Nxe7 13. Qe2 Nc6 14. c3 a5 15. Nd2 a4 {1-0 (39) Klarenbeek,H (2415)-Barsov,A (2440) Purmerend 1993}) 10. Ng5 {[%emt 0:04:21]} Bd7 {[%emt 0:04:20]} 11. Nd5 {[%emt 0:00:10]} h6 {[%emt 0:09:17] [#] Threatens to win with ...Nxd5.} 12. c3 {[%emt 0:01:06][%cal Bc2c3,Bc3d4][%mdl 32]} Nxd5 {[%emt 0:00:16]} (12... Nb5 $5 {[%cal Re7d5]} 13. Nf3 Nxd5 14. Qxd5 Bc6 $11) 13. exd5 {[%emt 0:02:07]} hxg5 {[%emt 0:00:06]} 14. cxd4 {[%emt 0:00:16]} O-O {[%emt 0:03:44]} 15. Bb2 {[%emt 0:01:13]} (15. dxe5 {seems wilder.} Bxe5 16. Bxg5 Qxg5 17. f4) 15... e4 {[%emt 0:10:29]} 16. Bxe4 {[%emt 0:00:42]} Re8 {[%emt 0:00:26]} 17. Re1 {[%emt 0:10:39]} a5 {[%emt 0:00:13]} 18. Qc2 {[%emt 0:04:40][%cal Od5d6]} a4 {[%emt 0:05:09]} 19. a3 {[%emt 0:13:15]} axb3 {[%emt 0:00:31]} 20. Qxb3 {[%emt 0:00:02]} Ba4 {[%emt 0:07:02]} 21. Qc4 {[%emt 0:00:31]} Qd6 {[%emt 0:02:43]} 22. Bc3 {[%emt 0:03:31]} Qd7 {[%emt 0:02:06]} 23. Bg2 {[%emt 0:08:54]} Rxe1+ {[%emt 0:03:54] The position is equal.} 24. Rxe1 {[%emt 0:00:24]} Bb5 {[%emt 0:00:09]} 25. Qb3 {[%emt 0:00:18]} Re8 {[%emt 0:02:12]} 26. Re3 {[%emt 0:10:26][%cal Oa3a4]} g4 {[%emt 0:01:56]} 27. Qd1 {[%emt 0:01:34]} Rxe3 {[%emt 0:02:39]} 28. fxe3 {[%emt 0:00:03]} Qe7 {[%emt 0:00:06][%csl LRa3,LRe3]} 29. Qc1 {[%emt 0:01:40]} Bh6 {[%emt 0:00:10]} 30. Bd2 {[%emt 0:00:37]} Bd3 {[%emt 0:00:16]} 31. a4 {[%emt 0:03:21]} Be4 {[%emt 0:06:00]} 32. Qc5 {[%emt 0:00:10]} Qe8 {[%emt 0:00:07][%cal Oe8a4]} 33. Qb5 {[%emt 0:05:38]} c6 {[%emt 0:05:00]} 34. dxc6 {[%emt 0:01:48]} Bxg2 {[%emt 0:00:09]} 35. Kxg2 $11 {[%emt 0:00:58][%mdl 4096] Endgame KQB-KQB} Qe4+ {[%emt 0:00:06]} 36. Kf2 {[%emt 0:03:09]} Bxe3+ {[%emt 0:02:37]} 37. Bxe3 {[%emt 0:00:09]} Qf3+ {[%emt 0:00:06]} 38. Ke1 {[%emt 0:00:36]} Qxe3+ {[%emt 0:00:07]} 39. Qe2 {[%emt 0:00:54]} Qc3+ {[%emt 0:05:28]} 40. Kf1 {[%emt 0:00:15]} Qxc6 {[%emt 0:00:18] [#] And now ...Qh1+ would win.} 41. Qxg4 {[%emt 0:30:10]} Qxa4 {[%emt 0:30:28]} 42. Qc8+ {[%emt 0:00:06]} Kg7 {[%emt 0:00:05]} 43. Qxb7 {[%emt 0:00:06] Weighted Error Value: White=0.06 (flawless) /Black=0.04 (flawless)} 1/2-1/2

[Event "44th Chess Olympiad Open 2022"]
[Site "Chennai"]
[Date "2022.08.09"]
[Round "11.14"]
[White "Mchedlishvili, Mikheil"]
[Black "Adly, Ahmed"]
[Result "1/2-1/2"]
[ECO "D40"]
[WhiteElo "2593"]
[BlackElo "2582"]
[Annotator "TA"]
[PlyCount "71"]
[EventDate "2022.07.29"]
[EventType "team-tourn"]
[EventCountry "IND"]
[SourceTitle "playchess.com"]
[Source "ChessBase"]
[SourceQuality "1"]
[WhiteTeam "Georgia"]
[BlackTeam "Egypt"]
[WhiteTeamCountry "GEO"]
[BlackTeamCountry "EGY"]
[TimeControl "40/5400+30:1800+30"]

{[%evp 25,71,18,18,14,27,24,29,31,32,27,35,13,54,57,100,100,98,39,78,84,177,27,59,76,59,66,83,85,66,67,69,66,66,66,66,67,67,67,69,74,69,69,114,14,9,11,16,0]} 1. d4 {[%emt 0:00:09]} Nf6 {[%emt 0:00:13]} 2. c4 {[%emt 0:00:29]} e6 {[%emt 0:00:03]} 3. Nf3 {[%emt 0:00:42]} d5 {[%emt 0:00:06]} 4. Nc3 {[%emt 0:00:52]} c5 {[%emt 0:01:11]} 5. e3 {[%emt 0:03:32]} Nc6 {[%emt 0:00:10]} 6. a3 {[%emt 0:00:50]} a6 {[%emt 0:00:05]} 7. dxc5 {[%emt 0:02:12]} Bxc5 {[%emt 0:00:54]} 8. b4 {[%emt 0:00:52]} Ba7 {[%emt 0:01:16]} 9. Bb2 {[%emt 0:03:37]} O-O {[%emt 0:00:22]} 10. Qc2 {[%emt 0:04:40]} Qe7 {[%emt 0:02:02]} 11. Rd1 {[%emt 0:06:32]} Rd8 {[%emt 0:01:19]} 12. Be2 {[%emt 0:02:14]} dxc4 {[%emt 0:03:52]} 13. Rxd8+ {[%emt 0:01:20]} Nxd8 {[%emt 0:03:11]} 14. Bxc4 {[%emt 0:00:50] D40: Queen's Gambit Declined: Semi-Tarrasch with 5 e3.} Bd7 {[%emt 0:02:15]} 15. O-O {[%emt 0:02:54]} Rc8 {[%emt 0:00:45]} 16. Bd3 {[%emt 0:10:44] White has an edge.} Bb8 {[%emt 0:02:07]} 17. Qb1 {[%emt 0:05:46] [#]} h6 $146 {[%emt 0:11:03]} ({Predecessor:} 17... Bc6 18. Ne4 Nd7 19. Rc1 Nb6 20. Qa1 f5 21. Ned2 Bd5 22. Rxc8 Nxc8 23. e4 fxe4 24. Nxe4 {½-½ (35) Simonian,T (2294)-Yilmaz,M (2519) Paleochora 2011}) 18. Rd1 {[%emt 0:03:48]} Ng4 {[%emt 0:08:06]} 19. Ne4 {[%emt 0:02:28]} f5 {[%emt 0:21:15]} 20. Nc5 {[%emt 0:16:29]} Bc6 {[%emt 0:00:03]} 21. e4 {[%emt 0:00:56]} (21. h3 $16 Bxf3 22. gxf3) 21... Nf7 {[%emt 0:16:35]} 22. h3 {[%emt 0:00:52]} (22. exf5 Ng5 23. f6 Nxf3+ 24. gxf3 Nxf6 $11) 22... Nf6 {[%emt 0:03:56]} (22... Nge5 $16 23. Nxe5 (23. exf5 $2 Nxf3+ 24. gxf3 Qh4 $19) 23... Nxe5) 23. Re1 {[%emt 0:02:54]} (23. exf5 $18 Bxf3 24. gxf3) 23... b6 {[%emt 0:05:00]} 24. Nxa6 {[%emt 0:03:59]} (24. Bxa6 Rd8 25. Nd4 Rxd4 26. Bxd4 bxc5 27. bxc5 Qc7 $15) 24... Bf4 {[%emt 0:05:09]} 25. b5 {[%emt 0:02:16][%cal Bb4b5,Bb5c6][%mdl 32]} (25. exf5 Bxf3 26. gxf3 Nd5 $11) 25... Bb7 {[%emt 0:00:32]} 26. Nb4 {[%emt 0:11:49] Hoping for Nc6.} (26. exf5 Bxf3 27. gxf3 Nd5 $14) 26... Nxe4 {[%emt 0:02:26]} 27. Nc6 $1 {[%emt 0:00:26]} Bxc6 {[%emt 0:00:02]} 28. bxc6 {[%emt 0:00:06]} Nfd6 {[%emt 0:00:13]} 29. Be5 {[%emt 0:03:38]} (29. Bxe4 Nxe4 30. Rxe4 fxe4 31. Qxe4 Rf8 $11) 29... Bxe5 {[%emt 0:02:34]} 30. Nxe5 {[%emt 0:00:02]} Qf6 {[%emt 0:00:08]} 31. Bxe4 {[%emt 0:00:51]} fxe4 {[%emt 0:05:53]} 32. Nd7 {[%emt 0:02:35] White is more active.} Qc3 {[%emt 0:00:24]} 33. Rc1 {[%emt 0:00:58]} ({Don't play} 33. Nxb6 Rxc6 34. Nd7 Qxa3 $11) 33... Qd3 {[%emt 0:01:03] [#]} 34. Qxb6 {[%emt 0:00:43]} ({Better is} 34. Qa2 $1 $16 {[%cal Ra2e6]}) 34... Qxa3 $11 {[%emt 0:00:01]} 35. Rd1 {[%emt 0:03:01] And now c7 would win.} e3 $1 {[%emt 0:00:42]} 36. Qxe3 {[%emt 0:01:41] Weighted Error Value: White=0.24 (precise) /Black=0.17 (very precise)} 1/2-1/2

[Event "44th Chess Olympiad Open 2022"]
[Site "Chennai"]
[Date "2022.08.09"]
[Round "11.14"]
[White "Pantsulaia, Levan"]
[Black "Wageih, Kareim"]
[Result "1-0"]
[ECO "A09"]
[WhiteElo "2581"]
[BlackElo "2387"]
[Annotator "RC"]
[PlyCount "81"]
[EventDate "2022.07.29"]
[EventType "team-tourn"]
[EventCountry "IND"]
[SourceTitle "playchess.com"]
[Source "ChessBase"]
[SourceQuality "1"]
[WhiteTeam "Georgia"]
[BlackTeam "Egypt"]
[WhiteTeamCountry "GEO"]
[BlackTeamCountry "EGY"]
[TimeControl "40/5400+30:1800+30"]

1. Nf3 {[%emt 0:00:03]} d5 {[%emt 0:00:41]} 2. c4 {[%emt 0:00:08]} d4 {[%emt 0:01:15]} 3. b4 {[%emt 0:00:10]} c5 {[%emt 0:06:39]} 4. b5 {[%emt 0:00:09]} f6 {[%emt 0:01:32]} 5. g3 {[%emt 0:00:56]} e5 {[%emt 0:00:13]} 6. d3 {[%emt 0:00:07]} Be6 {[%emt 0:04:53]} 7. Bg2 {[%emt 0:01:47]} Qc8 {[%emt 0:01:47]} 8. O-O {[%emt 0:01:07]} Bh3 {[%emt 0:00:54]} 9. e4 {[%emt 0:02:18]} Bg4 {[%emt 0:08:32]} 10. Qe1 {[%emt 0:08:13]} g5 {[%emt 0:17:09]} 11. h4 {[%emt 0:05:42]} h6 {[%emt 0:09:43]} 12. Nh2 {[%emt 0:02:02]} gxh4 {[%emt 0:02:54]} 13. f4 {[%emt 0:06:03]} h3 {[%emt 0:04:00]} 14. Bf3 {[%emt 0:00:30]} Bxf3 {[%emt 0:01:13]} 15. Rxf3 {[%emt 0:06:12]} Nd7 {[%emt 0:05:04]} 16. Qf1 {[%emt 0:01:15]} Qc7 {[%emt 0:03:15]} 17. Qxh3 {[%emt 0:02:54]} O-O-O {[%emt 0:02:59]} 18. fxe5 {[%emt 0:05:21]} fxe5 {[%emt 0:00:08]} 19. Rf7 {[%emt 0:04:16]} Bd6 {[%emt 0:04:08]} 20. Nd2 {[%emt 0:00:27]} Ne7 {[%emt 0:04:52]} 21. Ndf3 {[%emt 0:01:05]} Qa5 {[%emt 0:02:44]} 22. Bd2 {[%emt 0:02:46]} Qa3 {[%emt 0:00:10]} 23. Qf1 {[%emt 0:09:36]} Rhg8 {[%emt 0:00:01]} 24. Kf2 {[%emt 0:04:08]} h5 {[%emt 0:01:56]} 25. Qb1 {[%emt 0:01:03]} Rdf8 {[%emt 0:03:13]} 26. Rxf8+ {[%emt 0:00:11]} Rxf8 {[%emt 0:00:23]} 27. Qc2 {[%emt 0:09:19]} Ng6 {[%emt 0:02:25]} 28. Ke2 {[%emt 0:03:39]} Be7 {[%emt 0:02:41]} 29. Rb1 {[%emt 0:00:50]} h4 {[%emt 0:00:38]} 30. Rb3 {[%emt 0:02:50]} Qa4 {[%emt 0:00:01]} 31. Qc1 {[%emt 0:00:22]} hxg3 {[%emt 0:04:22]} 32. Ra3 {[%emt 0:00:07]} Qxa3 {[%emt 0:01:32]} 33. Qxa3 {[%emt 0:00:07]} gxh2 {[%emt 0:00:05]} 34. Nxh2 {[%emt 0:00:07]} Kb8 {[%emt 0:02:01]} 35. Qc1 {[%emt 0:00:10]} Nf6 {[%emt 0:01:32]} 36. Qg1 {[%emt 0:05:59]} Rg8 {[%emt 0:00:34]} 37. Qf2 {[%emt 0:00:12]} Rf8 {[%emt 0:01:20]} 38. Qf5 {[%emt 0:00:42]} Rg8 {[%emt 0:01:18]} 39. Nf3 {[%emt 0:01:29]} Ng4 {[%emt 0:00:40]} 40. Qf7 {[%emt 0:00:32]} Nf6 {[%emt 0:00:30]} 41. Bg5 {[%emt 0:30:36]} 1-0

[Event "44th Chess Olympiad Open 2022"]
[Site "Chennai"]
[Date "2022.08.09"]
[Round "11.14"]
[White "Fawzy, Adham"]
[Black "Paichadze, Luka"]
[Result "1-0"]
[ECO "B12"]
[WhiteElo "2471"]
[BlackElo "2561"]
[Annotator "RC"]
[PlyCount "77"]
[EventDate "2022.07.29"]
[EventType "team-tourn"]
[EventCountry "IND"]
[SourceTitle "playchess.com"]
[Source "ChessBase"]
[SourceQuality "1"]
[WhiteTeam "Egypt"]
[BlackTeam "Georgia"]
[WhiteTeamCountry "EGY"]
[BlackTeamCountry "GEO"]
[TimeControl "40/5400+30:1800+30"]

1. e4 {[%emt 0:00:05]} c6 {[%emt 0:00:05]} 2. d4 {[%emt 0:00:22]} d5 {[%emt 0:00:05]} 3. e5 {[%emt 0:00:02]} c5 {[%emt 0:01:14]} 4. Nf3 {[%emt 0:00:03]} Bg4 {[%emt 0:00:47]} 5. dxc5 {[%emt 0:01:59]} e6 {[%emt 0:00:12]} 6. Bb5+ {[%emt 0:00:36]} Nd7 {[%emt 0:00:17]} 7. b4 {[%emt 0:02:46]} Ne7 {[%emt 0:00:31]} 8. Bb2 {[%emt 0:06:59]} Nc6 {[%emt 0:01:07]} 9. a3 {[%emt 0:02:51]} a5 {[%emt 0:02:48]} 10. Nbd2 {[%emt 0:14:14]} axb4 {[%emt 0:13:24]} 11. Bxc6 {[%emt 0:03:33]} bxc6 {[%emt 0:00:06]} 12. axb4 {[%emt 0:00:09]} Rb8 {[%emt 0:08:45]} 13. Bc3 {[%emt 0:03:07]} Be7 {[%emt 0:10:08]} 14. h3 {[%emt 0:08:34]} Bh5 {[%emt 0:01:59]} 15. Ra4 {[%emt 0:06:36]} f6 {[%emt 0:08:58]} 16. Qa1 {[%emt 0:03:05]} Rc8 {[%emt 0:13:49]} 17. O-O {[%emt 0:02:26]} O-O {[%emt 0:01:57]} 18. Re1 {[%emt 0:03:23]} fxe5 {[%emt 0:05:05]} 19. Bxe5 {[%emt 0:00:52]} Nxe5 {[%emt 0:08:21]} 20. Qxe5 {[%emt 0:00:33]} Bf7 {[%emt 0:00:05]} 21. Qe3 {[%emt 0:01:55]} Kh8 {[%emt 0:02:26]} 22. Nb3 {[%emt 0:03:06]} Bf6 {[%emt 0:02:31]} 23. Ra7 {[%emt 0:00:12]} Ra8 {[%emt 0:06:34]} 24. Rxa8 {[%emt 0:03:26]} Qxa8 {[%emt 0:00:01]} 25. Ne5 {[%emt 0:00:54]} Qa4 {[%emt 0:04:33]} 26. Nxf7+ {[%emt 0:01:19]} Rxf7 {[%emt 0:00:01]} 27. Qxe6 {[%emt 0:00:12]} Rf8 {[%emt 0:00:12]} 28. Qf7 {[%emt 0:02:23]} Qa8 {[%emt 0:00:35]} 29. Qd7 {[%emt 0:00:15]} Bc3 {[%emt 0:02:39]} 30. Re6 {[%emt 0:01:47]} Qb8 {[%emt 0:04:28]} 31. Qd6 {[%emt 0:01:46]} Kg8 {[%emt 0:00:01]} 32. Qxc6 {[%emt 0:05:32]} Qf4 {[%emt 0:01:46]} 33. Re2 {[%emt 0:00:12]} Bxb4 {[%emt 0:00:29]} 34. Qxd5+ {[%emt 0:00:27]} Kh8 {[%emt 0:00:01]} 35. Qe5 {[%emt 0:03:09]} Qc4 {[%emt 0:00:16]} 36. Re4 {[%emt 0:00:40]} Qb5 {[%emt 0:00:34]} 37. Qd4 {[%emt 0:02:13]} Ba3 {[%emt 0:00:49]} 38. Qa4 {[%emt 0:00:32]} Qb7 {[%emt 0:00:48]} 39. c6 {[%emt 0:00:39]} 1-0

[Event "44th Chess Olympiad Open 2022"]
[Site "Chennai"]
[Date "2022.08.09"]
[Round "11.15"]
[White "Vocaturo, Daniele"]
[Black "Cordova, Emilio"]
[Result "1/2-1/2"]
[ECO "B30"]
[WhiteElo "2616"]
[BlackElo "2549"]
[Annotator "TA"]
[PlyCount "62"]
[EventDate "2022.07.29"]
[EventType "team-tourn"]
[EventCountry "IND"]
[SourceTitle "playchess.com"]
[Source "ChessBase"]
[SourceQuality "1"]
[WhiteTeam "Italy"]
[BlackTeam "Peru"]
[WhiteTeamCountry "ITA"]
[BlackTeamCountry "PER"]
[TimeControl "40/5400+30:1800+30"]

{[%evp 9,62,6,48,16,22,24,16,21,34,22,23,16,24,20,39,4,32,8,39,10,10,8,11,14,16,13,12,12,15,7,0,0,3,8,0,0,0,0,0,0,0,-11,-12,-13,-10,-12,-9,-12,0,-17,0,-30,-25,-30,-19]} 1. e4 {[%emt 0:00:03]} c5 {[%emt 0:02:35]} 2. Nf3 {[%emt 0:00:28]} Nc6 {[%emt 0:01:21]} 3. Bb5 {[%emt 0:01:33]} e6 {[%emt 0:03:33]} 4. O-O {[%emt 0:01:19]} Nge7 {[%emt 0:01:00]} 5. Re1 {[%emt 0:01:10]} b6 {[%emt 0:05:23]} 6. d4 {[%emt 0:04:52] B30: Sicilian: 2...Nc6 3 Bb5, lines without ...g6.} cxd4 {[%emt 0:00:59]} 7. Nxd4 {[%emt 0:00:06]} Nxd4 {[%emt 0:03:56]} 8. Qxd4 {[%emt 0:00:09] [#] The position is equal.} Nc6 $146 {[%emt 0:00:48]} ({Predecessor:} 8... a6 9. Bf1 Nc6 10. Qc3 Qc7 11. Qg3 Qxg3 12. hxg3 Bb7 13. c3 Bd6 14. Be3 Bc7 {½-½ (46) Vokhidov,S (2536)-Nihal,S (2646) Sharjah 2022}) 9. Qd1 {[%emt 0:09:27]} Bb7 {[%emt 0:07:20]} 10. Nc3 {[%emt 0:01:13]} a6 {[%emt 0:07:12]} (10... Bc5 {seems wilder.} 11. Bf4 a6 12. Bf1 b5) 11. Bf1 {[%emt 0:02:57]} d6 {[%emt 0:11:29]} 12. Bf4 {[%emt 0:09:57]} Rc8 {[%emt 0:05:15]} 13. Qd2 {[%emt 0:14:27]} Ne5 {[%emt 0:00:27]} 14. Rad1 {[%emt 0:00:30][%cal Oc3b5] With the idea Nb5!} (14. Qd4 $5 {[%cal Rf1a6]}) 14... Be7 $1 {[%emt 0:04:09]} 15. Qd4 {[%emt 0:03:22]} O-O {[%emt 0:09:46]} 16. Bxe5 {[%emt 0:02:18]} dxe5 {[%emt 0:00:05]} 17. Qxe5 {[%emt 0:00:14]} Qc7 {[%emt 0:00:05]} 18. Qxc7 {[%emt 0:01:13]} Rxc7 {[%emt 0:00:12]} 19. Re2 {[%emt 0:01:34]} Rfc8 {[%emt 0:02:11]} 20. Nb1 {[%emt 0:23:43]} g5 {[%emt 0:19:12]} 21. c3 {[%emt 0:00:00]} b5 {[%emt 0:00:05]} 22. a3 {[%emt 0:00:00]} a5 {[%emt 0:00:27]} 23. b4 {[%emt 0:00:00]} axb4 {[%emt 0:00:24]} 24. axb4 {[%emt 0:00:00]} Ra8 {[%emt 0:00:12]} 25. f3 {[%emt 0:00:00]} Bc6 {[%emt 0:00:38][%mdl 1024] Black has compensation.} 26. Kf2 {[%emt 0:00:00]} Kg7 {[%emt 0:00:27]} 27. Rc2 {[%emt 0:00:00]} Be8 {[%emt 0:00:22]} 28. Bd3 {[%emt 0:00:00]} h5 {[%emt 0:05:09]} 29. Ke2 {[%emt 0:00:00]} h4 {[%emt 0:00:28]} 30. Nd2 {[%emt 0:01:21]} Bd6 {[%emt 0:00:22]} 31. h3 {[%emt 0:00:47]} Rac8 {[%emt 0:02:24] An even fight not without its subleties.  Weighted Error Value: White=0.08 (flawless) /Black=0.08 (flawless)} 1/2-1/2